[Event "MARCEL 1st Div Ch-League 2019"]
[Site "Dhaka"]
[Date "2019.11.14"]
[Round "3.3"]
[White "Shivshankar Iyer S"]
[Black "Gias Uddin, Ahmed"]
[Result "0-1"]
[ECO "E64"]
[WhiteElo "1573"]
[BlackElo "1900"]
[Annotator "NA RC"]
[PlyCount "84"]
[EventDate "2019.11.12"]
[EventCountry "BAN"]
[SourceTitle "playchess.com"]
[Source "ChessBase"]
[SourceQuality "1"]
[TimeControl "5400+30"]

{[%evp 8,84,25,29,38,14,24,41,65,47,72,62,92,93,101,75,106,41,95,77,114,120,131,107,146,143,171,195,178,92,421,107,116,75,65,91,77,31,182,141,222,-8,177,169,160,170,32767,32767,32767,32767,32767,32767,32767,32767,32767,32767,32767,32767,32767,32767,32767,261,303,-29990,-29991,-29991,-29992,-29992,-454,-29993,-29994,-29994,-29995,-29995,-29995,-29995,-811,-29996,-29996]} 1. d4 {[%emt 0:00:00]} Nf6 {[%emt 0:00:01]} 2. Nf3 {[%emt 0:00:03]} d6 {[%emt 0:00:29]} 3. g3 {[%emt 0:02:17]} g6 {[%emt 0:00:37]} 4. c4 {[%emt 0:00:32]} Bg7 {[%emt 0:00:11]} 5. Nc3 {[%emt 0:00:47]} O-O {[%emt 0:00:25]} 6. Bg2 {[%emt 0:00:18]} c5 {[%emt 0:00:24]} 7. d5 {[%emt 0:02:06]} e5 {[%emt 0:00:43]} 8. e4 {[%emt 0:03:12]} Ne8 {[%emt 0:00:57]} 9. O-O {[%emt 0:01:23]} f5 {[%emt 0:05:44] E64: King's Indian: Fianchetto: 6...c5 7 d5} (9... Bg4 10. Qd3 Bxf3 11. Qxf3 Nd7 12. Qe2 f5 13. f4 exf4 14. Bxf4 fxe4 15. Nxe4 Qe7 16. Rae1 h6 17. h4 {1-0 (35) Cruz,C (2562)-Munoz Pantoja,M (2511) Riga 2019}) 10. Bg5 {[%emt 0:06:58]} Nf6 {[%emt 0:04:43]} 11. Qd2 {[%emt 0:03:14]} Qb6 $146 {[%emt 0:04:06]} ({Predecessor:} 11... a6 12. a4 Nbd7 13. exf5 gxf5 14. Nh4 Nb6 15. b3 Bd7 16. Bh6 f4 17. Bxg7 Kxg7 18. gxf4 {0-1 (46) Dikov,A (1976)-Nevzorov,N Tambov 2015}) 12. Nh4 {[%emt 0:10:56]} (12. exf5 $16 Bxf5 13. Nh4) 12... f4 {[%emt 0:11:08]} ({Black should try} 12... Nxe4 $14 13. Nxe4 (13. Bxe4 fxe4 14. Nxe4 Bh3 $14) 13... fxe4) 13. gxf4 {[%emt 0:06:57]} exf4 {[%emt 0:00:33]} 14. Bxf4 {[%emt 0:00:59]} Nh5 {[%emt 0:02:44]} 15. Be3 {[%emt 0:00:36]} (15. Bg5 $18) 15... Bf6 {[%emt 0:01:25]} (15... Nd7 $142) 16. Nf3 {[%emt 0:11:41]} Na6 {[%emt 0:06:21]} 17. e5 {[%emt 0:07:46]} dxe5 {[%emt 0:00:56]} 18. Ne4 {[%emt 0:00:59]} (18. d6 $18) 18... Bh8 $2 {[%emt 0:03:01]} (18... Nf4 $16) 19. Ne1 $2 {[%emt 0:14:15]} (19. d6 $18 {and the rest is easy.} Nf6 20. Nxf6+ Bxf6 21. d7) 19... Nf4 {[%emt 0:01:13]} 20. Bxf4 {[%emt 0:02:19]} exf4 {[%emt 0:00:25] [#]} 21. d6 $1 {[%emt 0:03:15]} Bd4 {[%emt 0:01:25] [#]} 22. Nf3 {[%emt 0:01:05]} (22. Nc2 $1 $16) 22... Be6 {[%emt 0:00:51]} ({Black should try} 22... Qxb2 $14 23. Rad1 Qxd2 24. Rxd2 Bd7) 23. Nxd4 {[%emt 0:00:37]} cxd4 {[%emt 0:00:19]} 24. c5 $2 {[%emt 0:07:39]} (24. Ng5 $16 Bxc4 25. Rfc1) 24... Qb4 $2 {[%emt 0:01:20]} (24... Nxc5 $11 {and Black stays safe.} 25. Qxd4 Nxe4 26. Qxb6 axb6 27. Bxe4 Rxa2) 25. Qxb4 {[%emt 0:00:46]} Nxb4 {[%emt 0:00:02] [#]} 26. Ng5 $1 {[%emt 0:00:17]} Bd7 {[%emt 0:09:17]} 27. Bxb7 {[%emt 0:02:10]} Rab8 {[%emt 0:00:12]} 28. Be4 {[%emt 0:00:07]} Nc6 {[%emt 0:02:52]} 29. Bd5+ {[%emt 0:02:34]} Kh8 {[%emt 0:01:43]} 30. Nf7+ {[%emt 0:01:18]} Kg7 {[%emt 0:01:51]} 31. Bxc6 {[%emt 0:00:11]} Bxc6 {[%emt 0:01:35]} 32. Ne5 {[%emt 0:00:07]} Bd5 {[%emt 0:00:41]} 33. Rfe1 {[%emt 0:01:21]} Rxb2 {[%emt 0:03:39]} 34. c6 {[%emt 0:02:02]} Rf5 {[%emt 0:02:01]} 35. Reb1 $4 {[%emt 0:02:13]} (35. h4 $18 Rh5 36. f3 Rxh4 37. Nd3 Bxf3 38. Nxb2 Bxc6 39. Rac1 Rh1+ 40. Kf2 Rh2+ 41. Kf1 Bb5+ 42. Nc4) 35... Rg5+ {[%emt 0:01:24]} 36. Kf1 {[%emt 0:00:07]} Bg2+ {[%emt 0:01:12]} 37. Ke1 {[%emt 0:01:55]} Rxe5+ {[%emt 0:00:14]} 38. Kd1 {[%emt 0:00:04]} Bf3+ {[%emt 0:00:27]} 39. Kc1 {[%emt 0:00:03]} Rxf2 {[%emt 0:00:17]} 40. Rb7+ {[%emt 0:00:30] [#]} Kh6 $1 {[%emt 0:00:22]} 41. Re7 {[%emt 0:00:26]} Rc5+ {[%emt 0:02:24]} (41... Rg5 $142 42. Re1 Rc5+ 43. Kb1 Bg4 44. h4 Bf5+ 45. Re4 Bxe4#) 42. Kb1 {[%emt 0:00:23]} Bg4 {[%emt 0:01:32]} 0-1

[Event "MARCEL 1st Div Ch-League 2019"]
[Site "Dhaka"]
[Date "2019.11.14"]
[Round "3.4"]
[White "Anisuzzaman, Jewel"]
[Black "Ahmed, Sk. Raju"]
[Result "1-0"]
[ECO "A07"]
[WhiteElo "1852"]
[BlackElo "1794"]
[Annotator "NA RC"]
[PlyCount "127"]
[EventDate "2019.11.12"]
[EventCountry "BAN"]
[SourceTitle "playchess.com"]
[Source "ChessBase"]
[SourceQuality "1"]
[TimeControl "5400+30"]

{[%evp 13,127,8,16,-69,33,10,30,29,25,24,35,-6,0,-6,116,103,128,83,89,79,74,77,93,0,16,-54,-48,-58,-29,-47,0,-22,-7,-16,-11,-2,-2,-17,-14,-14,-3,-10,-8,-8,-13,-16,-11,32767,32767,32767,32767,32767,32767,32767,32767,32767,32767,32767,32767,32767,-16,-24,-29,-23,0,0,0,0,60,8,143,140,218,154,156,162,165,166,254,126,126,69,41,0,137,162,193,100,32767,32767,32767,32767,32767,32767,32767,32767,32767,32767,32767,32767,32767,32767,762,773,800,619,895,829,659,944,772,1508,29983,1537,29984,29986]} 1. Nf3 {[%emt 0:00:00]} d5 {[%emt 0:00:00]} 2. g3 {[%emt 0:00:00]} Nd7 {[%emt 0:00:27]} 3. Bg2 {[%emt 0:00:00]} c6 {[%emt 0:00:18]} 4. O-O {[%emt 0:00:00]} g6 {[%emt 0:00:05]} 5. c4 {[%emt 0:01:38]} Bg7 {[%emt 0:01:53]} 6. d3 {[%emt 0:03:11] A07: Réti Opening: New York and Capablanca Systems} (6. cxd5 cxd5 7. Nc3 Ngf6 8. b3 O-O 9. Bb2 b6 10. Rc1 Bb7 11. d3 a6 12. b4 Rc8 {½-½ (56) Iskandarov,M (2464)-Sumets,A (2569) Konya 2017}) 6... Ngf6 {[%emt 0:00:32]} 7. Nc3 {[%emt 0:04:02]} O-O {[%emt 0:03:03]} 8. Bf4 {[%emt 0:06:07]} ({White should try} 8. cxd5 $11 Nxd5 9. Bd2) 8... a6 $146 {[%emt 0:07:50]} ({Black should play} 8... d4 $15 9. Na4 (9. Nxd4 e5 $17 {[%mdl 64] Double Attack}) 9... Re8) ({Predecessor:} 8... Re8 9. Ne5 d4 10. Na4 Nh5 11. Nxc6 bxc6 12. Bxc6 Nxf4 13. Bxa8 Nh3+ 14. Kh1 Qc7 15. Qb3 {1-0 (43) Truman,R (1958)-Pafura,G (2061) Crawley 2016}) 9. Rc1 {[%emt 0:03:06]} dxc4 {[%emt 0:00:27]} 10. dxc4 {[%emt 0:00:24]} Nh5 {[%emt 0:00:54]} 11. Be3 {[%emt 0:02:02]} e5 {[%emt 0:00:54]} 12. Qc2 {[%emt 0:00:55]} f5 {[%emt 0:03:19]} 13. Rcd1 {[%emt 0:02:43]} Qc7 {[%emt 0:01:14] [#]} (13... Qe7 $11) 14. Ng5 $1 {[%emt 0:05:57]} Rf6 {[%emt 0:20:13]} 15. c5 {[%emt 0:09:37]} Nf8 {[%emt 0:03:19]} 16. Na4 {[%emt 0:03:26]} h6 {[%emt 0:01:46]} 17. Nb6 {[%emt 0:01:20]} Rb8 {[%emt 0:00:22]} 18. Nh3 {[%emt 0:01:38]} ({White should play} 18. Nf3 $16) 18... Be6 {[%emt 0:00:23]} 19. f4 {[%emt 0:00:32]} (19. f3 $11) 19... e4 $1 {[%emt 0:02:13]} 20. Rd6 {[%emt 0:02:44]} Rd8 {[%emt 0:06:26]} 21. Rfd1 {[%emt 0:06:50]} Re8 {[%emt 0:06:43]} 22. Nf2 {[%emt 0:02:33]} Rf7 {[%emt 0:01:12]} 23. Bd4 {[%emt 0:08:12]} Nf6 {[%emt 0:00:42]} 24. Be5 {[%emt 0:00:54]} Qe7 {[%emt 0:02:38]} 25. e3 {[%emt 0:00:54]} Nd5 {[%emt 0:00:48]} 26. Nxd5 {[%emt 0:02:53]} Bxd5 {[%emt 0:00:29]} 27. Bxg7 {[%emt 0:00:48]} Rxg7 {[%emt 0:02:08]} 28. Rd2 {[%emt 0:02:23]} Rd8 {[%emt 0:00:30]} 29. Rxd8 {[%emt 0:01:19]} Qxd8 {[%emt 0:00:08]} 30. Nd1 {[%emt 0:01:40]} Qa5 {[%emt 0:00:45]} 31. a3 {[%emt 0:05:12]} Ne6 {[%emt 0:01:03]} 32. Bf1 {[%emt 0:03:24]} Qxc5 {[%emt 0:01:22]} 33. Qxc5 {[%emt 0:00:17]} Nxc5 {[%emt 0:00:10]} 34. Nc3 {[%emt 0:00:31]} Nb3 {[%emt 0:03:18]} 35. Rd1 {[%emt 0:00:49]} Be6 {[%emt 0:05:23]} 36. Rd6 {[%emt 0:00:43]} Kf7 {[%emt 0:00:24]} 37. Rxe6 {[%emt 0:00:18] Remove Defender} Kxe6 {[%emt 0:00:59]} 38. Bc4+ {[%emt 0:00:01]} Kd6 {[%emt 0:01:03]} 39. Bxb3 {[%emt 0:00:12]} b5 {[%emt 0:00:21]} 40. Kf2 {[%emt 0:00:58]} Kc5 {[%emt 0:00:27] [#]} ({Better is} 40... h5 $11) 41. Ne2 {[%emt 0:06:08]} ({White should play} 41. g4 $1 $16) 41... b4 {[%emt 0:00:25]} (41... Rd7 $11 {remains equal.}) 42. a4 {[%emt 0:00:53]} Kd6 {[%emt 0:01:03]} (42... Kb6 $16 {is a better defense.}) 43. Bc4 {[%emt 0:00:49]} a5 {[%emt 0:01:13]} 44. Nd4 {[%emt 0:01:19]} Re7 {[%emt 0:00:40]} 45. h4 {[%emt 0:00:55]} Kc5 {[%emt 0:00:29]} (45... c5 $16 {might work better.} 46. Nb3 Ra7) 46. b3 {[%emt 0:00:43]} h5 {[%emt 0:02:19]} 47. Ke2 {[%emt 0:02:32]} ({Better is} 47. Ne6+ $16 Kd6 48. Ng5) 47... Kd6 $1 {[%emt 0:00:27]} 48. g4 {[%emt 0:02:02]} (48. Kf1 $14) 48... hxg4 {[%emt 0:00:23] [#]} ({Much worse is} 48... fxg4 49. f5 $16) (48... c5 $1 $11 {keeps the balance.} 49. Nb5+ Kd7) 49. h5 $1 {[%emt 0:00:01]} c5 {[%emt 0:04:18]} 50. Nb5+ {[%emt 0:00:11]} Kc6 {[%emt 0:01:08]} 51. hxg6 {[%emt 0:09:44]} Rg7 {[%emt 0:00:06]} 52. Be6 {[%emt 0:00:00]} c4 {[%emt 0:03:58]} 53. Bxc4 {[%emt 0:00:00]} Rxg6 {[%emt 0:00:01]} 54. Nd4+ {[%emt 0:00:00]} Kc5 {[%emt 0:01:04]} 55. Nxf5 {[%emt 0:00:00]} g3 {[%emt 0:00:17]} 56. Kf1 {[%emt 0:00:00]} g2+ {[%emt 0:00:17]} 57. Kg1 {[%emt 0:00:00]} Rg4 {[%emt 0:03:47]} 58. Be6 {[%emt 0:00:00]} Rg6 {[%emt 0:00:18] [#]} 59. Bd5 $1 {[%emt 0:00:00]} Rg4 {[%emt 0:01:57]} 60. Bxe4 {[%emt 0:00:00]} Rg8 {[%emt 0:00:25]} 61. Bd3 {[%emt 0:00:00]} Rg4 {[%emt 0:00:07]} 62. Bc4 {[%emt 0:00:00]} Kc6 {[%emt 0:00:09]} 63. Nd4+ $18 {[%emt 0:00:00]} (63. Be2 $142 Rxf4 64. exf4 Kd5 65. Bd3 Kc6 66. Kxg2 Kd5 67. Ne3+ Kd4 68. Nc4) 63... Kd7 {[%emt 0:00:07]} 64. Be6+ {[%emt 0:00:00] Double Attack} 1-0

[Event "MARCEL 1st Div Ch-League 2019"]
[Site "Dhaka"]
[Date "2019.11.14"]
[Round "3.5"]
[White "Hossain, Monir"]
[Black "Shafiqul, Islam"]
[Result "1-0"]
[ECO "E11"]
[WhiteElo "2058"]
[BlackElo "1920"]
[Annotator "NA RC"]
[PlyCount "77"]
[EventDate "2019.11.12"]
[EventCountry "BAN"]
[SourceTitle "playchess.com"]
[Source "ChessBase"]
[SourceQuality "1"]
[TimeControl "5400+30"]

{[%evp 8,72,27,15,24,12,13,10,4,14,32,39,32,31,36,24,50,39,33,46,54,35,37,49,91,39,112,27,27,38,42,20,149,206,181,184,206,108,194,164,183,208,366,364,438,437,458,200,456,482,446,482,472,477,467,494,561,577,548,642,602,593,570,648,625,664,678]} 1. d4 {[%emt 0:00:00]} e6 {[%emt 0:00:36]} 2. c4 {[%emt 0:00:26]} Nf6 {[%emt 0:00:06]} 3. Nf3 {[%emt 0:00:18]} Bb4+ {[%emt 0:00:29]} 4. Bd2 {[%emt 0:00:20]} a5 {[%emt 0:00:49]} 5. Nc3 {[%emt 0:00:58]} d5 {[%emt 0:00:36]} 6. e3 {[%emt 0:05:25]} O-O {[%emt 0:06:00]} 7. Bd3 {[%emt 0:00:11] E11: Bogo-Indian} (7. Qc2 b6 8. cxd5 exd5 9. a3 Be7 10. Bd3 Re8 11. O-O Bf8 12. e4 dxe4 13. Nxe4 Nbd7 14. Neg5 Bd6 15. Bc4 Re7 16. Nxf7 Rxf7 17. Bxf7+ Kh8 18. Rfe1 Bb7 19. Ng5 Qf8 20. Be6 Bd5 21. Bxd5 {1-0 (21) Bacrot,E (2695)-Van Wely,L (2695) chess.com INT 2017}) 7... b6 {[%emt 0:24:29]} 8. O-O {[%emt 0:00:26]} Bxc3 {[%emt 0:04:39]} 9. Bxc3 {[%emt 0:01:07]} dxc4 $146 {[%emt 0:12:10]} ({Predecessor:} 9... Bb7 10. Qe2 Nbd7 11. Rfd1 Qe7 12. Rac1 dxc4 13. Bxc4 {½-½ (28) Moussa,A (2235)-Schleifer,M (2320) Quebec 1997}) 10. Bxc4 {[%emt 0:00:35]} Bb7 {[%emt 0:00:41]} 11. Qe2 {[%emt 0:00:57]} Ne4 {[%emt 0:00:53]} 12. Rfd1 {[%emt 0:00:56]} Nxc3 {[%emt 0:01:14]} 13. bxc3 {[%emt 0:00:11]} c6 {[%emt 0:04:30]} 14. a4 {[%emt 0:00:47]} Nd7 {[%emt 0:01:00]} 15. e4 {[%emt 0:00:18]} Qc8 {[%emt 0:09:37]} 16. Qe3 {[%emt 0:06:29]} Ba6 {[%emt 0:05:23]} (16... Qc7 $14) 17. Bxa6 {[%emt 0:01:04]} ({White should play} 17. Bb3 $16) 17... Qxa6 {[%emt 0:00:18]} 18. e5 {[%emt 0:00:17]} b5 {[%emt 0:03:39]} 19. Ng5 {[%emt 0:00:42]} bxa4 {[%emt 0:05:50]} ({Black should try} 19... h6 $14 20. Ne4 Nb6) 20. Qe4 {[%emt 0:00:58]} ({Don't take} 20. Rxa4 $6 h6 $14) 20... g6 {[%emt 0:00:15] [#]} 21. Qh4 $1 {[%emt 0:00:31]} ({But not} 21. Rxa4 $6 Nb6 $16) 21... h5 {[%emt 0:00:48]} 22. Ne4 {[%emt 0:05:04]} ({But not} 22. Rxa4 $6 Nb6 $14) ({Better is} 22. Re1 $18) 22... Qe2 {[%emt 0:01:21]} (22... Ra7 $16) 23. Re1 {[%emt 0:00:39]} Qg4 {[%emt 0:02:11]} 24. Qe7 {[%emt 0:00:25]} Rad8 {[%emt 0:01:14]} (24... Ra7 {is a better defense.} 25. h3 (25. Rxa4 Rfa8 $16) 25... Qf4) 25. Nd6 {[%emt 0:02:09]} Nb6 {[%emt 0:10:30] [#]} 26. Nxf7 $1 {[%emt 0:01:51]} Nd5 {[%emt 0:02:04]} 27. Nh6+ {[%emt 0:00:14]} Kh8 {[%emt 0:00:04] [#]} 28. Qxf8+ $1 {[%emt 0:00:14]} Rxf8 {[%emt 0:00:14]} 29. Nxg4 {[%emt 0:00:14]} hxg4 {[%emt 0:00:10]} 30. Rxa4 {[%emt 0:00:56]} Nxc3 {[%emt 0:00:31]} 31. Rxa5 {[%emt 0:00:20]} Nb5 {[%emt 0:01:04]} 32. Re4 {[%emt 0:01:46]} Rd8 {[%emt 0:00:15]} 33. Rxg4 {[%emt 0:00:47]} Nxd4 {[%emt 0:00:22]} 34. h3 {[%emt 0:00:49]} Kg7 {[%emt 0:00:41]} 35. Ra7+ {[%emt 0:00:51]} Kh6 {[%emt 0:00:18]} 36. Rc7 {[%emt 0:01:35]} Rd5 $18 {[%emt 0:00:41]} 37. Rxd4 {[%emt 0:00:20]} Rxd4 {[%emt 0:00:19]} 38. Rxc6 {[%emt 0:00:11]} Rd1+ {[%emt 0:00:33]} 39. Kh2 {[%emt 0:00:16]} 1-0

[Event "MARCEL 1st Div Ch-League 2019"]
[Site "Dhaka"]
[Date "2019.11.14"]
[Round "3.8"]
[White "Nayem, Haque"]
[Black "Tanvir, Alam"]
[Result "1-0"]
[ECO "B21"]
[WhiteElo "1875"]
[BlackElo "1895"]
[Annotator "NA RC"]
[PlyCount "107"]
[EventDate "2019.11.12"]
[EventCountry "BAN"]
[SourceTitle "playchess.com"]
[Source "ChessBase"]
[SourceQuality "1"]
[TimeControl "5400+30"]

{[%evp 8,107,-33,-26,-26,-20,33,-14,108,-27,-16,-14,-13,-20,0,-20,-23,-18,-19,-30,-24,-22,-27,-27,0,-29,44,30,27,-18,-12,-14,-10,-7,25,-42,0,-16,27,18,79,106,90,107,194,186,200,209,204,182,216,235,246,157,156,157,178,158,228,251,416,144,235,207,221,198,203,182,219,191,32767,32767,32767,32767,32767,32767,32767,32767,32767,297,306,139,714,843,5397,5306,29982,29969,29992,522,509,491,562,539,515,579,574,641,704,713,29984,29986]} 1. e4 {[%emt 0:00:00]} c5 {[%emt 0:00:07]} 2. d4 {[%emt 0:00:00]} cxd4 {[%emt 0:00:19]} 3. c3 {[%emt 0:00:00]} dxc3 {[%emt 1:31:04]} 4. Nxc3 {[%emt 0:00:00]} Nc6 {[%emt 0:00:00]} 5. Nf3 {[%emt 0:00:00]} d6 {[%emt 0:00:00]} 6. Bc4 {[%emt 0:00:00]} Nf6 {[%emt 0:00:00]} 7. O-O {[%emt 0:06:02]} (7. e5 $5 {[%cal Re5f6]} Ng4 8. exd6 $11) 7... g6 {[%emt 0:00:00] [#]} (7... a6 $11 {keeps the balance.}) 8. h3 {[%emt 0:06:26]} ({White should play} 8. e5 $1 $16 {[%mdl 512]} d5 (8... Nxe5 9. Nxe5) 9. Bb5 (9. exf6 dxc4 10. Qxd8+ Nxd8 $16) (9. Nxd5 Nxd5 10. Bxd5 Bg7 $16)) 8... Bg7 {[%emt 0:00:00]} 9. Qe2 {[%emt 0:00:02]} O-O {[%emt 0:00:00]} 10. Rd1 {[%emt 0:00:02]} Nd7 {[%emt 0:00:00]} 11. Be3 {[%emt 0:01:15]} Nde5 {[%emt 0:00:00]} 12. Nxe5 {[%emt 0:00:25] Pin B21: Sicilian: 2 f4 and Morra Gambit} Nxe5 {[%emt 0:00:00]} 13. Bb3 {[%emt 0:00:16]} Bd7 {[%emt 0:00:00]} (13... Nc6 14. Rac1 Na5 15. Bc2 Be6 16. Bb1 Nc4 17. Bf4 Qb6 18. b3 {1-0 (40) Masoudi,K (1584)-Will,S (1723) Frankfurt 2018}) 14. Rac1 {[%emt 0:01:18]} Bc6 {[%emt 0:00:00]} 15. Qd2 $146 {[%emt 0:08:50]} ({Predecessor:} 15. f4 Nd7 16. Bf2 Qa5 17. Nd5 Rfe8 18. Be1 Qd8 19. Nb4 Qb6+ {0-1 (40) Ruigrok,J-White,S Guernsey 1990}) 15... Kh8 {[%emt 0:00:00]} 16. Bd4 {[%emt 0:01:27]} f6 {[%emt 0:00:00]} (16... a6 $15) 17. f4 {[%emt 0:04:17]} Nf7 {[%emt 0:00:00]} 18. Nd5 {[%emt 0:04:06]} e6 {[%emt 0:00:00]} 19. Nc3 {[%emt 0:03:18]} Qe7 {[%emt 0:00:00]} 20. Qf2 {[%emt 0:01:35]} b6 {[%emt 0:00:00]} 21. Be3 {[%emt 0:05:39]} ({Better is} 21. f5 $11) 21... Rac8 {[%emt 0:00:00]} 22. f5 {[%emt 0:01:16]} gxf5 {[%emt 0:00:00]} 23. exf5 {[%emt 0:01:06]} e5 {[%emt 0:00:00]} (23... exf5 $11 {keeps the balance.} 24. Nd5 Qe8) 24. Be6 {[%emt 0:00:54]} Rb8 {[%emt 0:00:00]} 25. Qd2 {[%emt 0:03:47]} Rg8 {[%emt 0:00:00]} (25... d5 $16 {was worth a try.} 26. Nxd5 Bxd5 27. Qxd5 (27. Bxd5 Rfd8 $16) 27... Rbd8) 26. Nd5 {[%emt 0:00:34]} Bxd5 {[%emt 0:00:00]} 27. Qxd5 {[%emt 0:00:02]} ({Don't do} 27. Bxd5 $6 Rbc8 $16) 27... Rgf8 {[%emt 0:00:00] [#]} 28. Rc6 $1 {[%emt 0:01:24]} Nd8 {[%emt 0:00:00]} 29. Rxd6 {[%emt 0:01:30]} Nxe6 {[%emt 0:00:00]} 30. fxe6 {[%emt 0:00:52]} ({Don't take} 30. Qxe6 $6 Qb7 $16) 30... Rbe8 {[%emt 0:00:00]} 31. Bd2 {[%emt 0:02:33]} f5 {[%emt 0:00:00]} 32. Bc3 {[%emt 0:00:02]} Qg5 {[%emt 0:01:45]} (32... Rg8 $16 {keeps fighting.} 33. Bxe5 Bxe5 34. Qxe5+ {[%mdl 64] Double Attack} Qg7) 33. Rd7 {[%emt 0:24:31]} Bf6 {[%emt 0:01:26]} (33... Rg8 $142 34. Rxg7 {[%mdl 64] Remove Defender} (34. Rxa7 Bf6 $16) 34... Rxg7 35. Bxe5 Kg8) 34. Kh1 $2 {[%emt 0:06:19]} (34. Rf7 $18 {is more deadly.}) 34... f4 {[%emt 0:02:22]} 35. Re1 {[%emt 0:02:02]} f3 {[%emt 0:02:39]} 36. Qxf3 {[%emt 0:00:35]} Rxe6 {[%emt 0:00:28]} 37. Qe4 {[%emt 0:03:54]} Qh5 {[%emt 0:04:05]} 38. Rf1 {[%emt 0:01:48]} Bg7 {[%emt 0:01:13]} 39. Rxf8+ {[%emt 0:01:13]} Bxf8 {[%emt 0:00:03]} 40. Rd8 {[%emt 0:00:52]} Kg7 {[%emt 0:00:39]} 41. Rd5 {[%emt 0:01:13]} Kf6 {[%emt 0:00:29]} 42. Rd3 {[%emt 0:02:14]} Bc5 {[%emt 0:01:51]} 43. Rf3+ {[%emt 0:00:54]} Kg7 {[%emt 0:00:54]} 44. Qd5 {[%emt 0:00:58]} (44. Qb7+ $18 {is more deadly.} Kh8 45. b4 (45. Qxa7 Qg6 $18)) 44... Re7 $2 {[%emt 0:00:29]} (44... Qe8 $16 45. Rg3+ Kh8) 45. b4 {[%emt 0:00:11]} Qg5 {[%emt 0:01:31]} 46. bxc5 {[%emt 0:00:31]} bxc5 {[%emt 0:00:22]} 47. Qxc5 {[%emt 0:00:26]} Kg6 {[%emt 0:00:28]} 48. Qe3 {[%emt 0:00:29]} (48. Qd6+ $142 Kg7 49. Bd2 Qh4 {[#]} 50. Bh6+ $1 {[%mdl 576] Deflection} Qxh6 51. Qxe7+ {[%mdl 64] Double Attack} Kg8 52. Qe8+ Kg7 53. Qf8+ Kg6 54. Qf6+ Kh5 55. g4#) 48... Qxe3 {[%emt 0:00:24]} 49. Rxe3 {[%emt 0:00:02]} Kf5 {[%emt 0:00:07]} 50. Kg1 {[%emt 0:02:22]} e4 {[%emt 0:00:26]} 51. Kf2 {[%emt 0:00:20]} h5 {[%emt 0:00:54]} 52. h4 {[%emt 0:00:31]} Re6 {[%emt 0:00:35]} 53. Rg3 {[%emt 0:00:12]} Ra6 {[%emt 0:01:08]} 54. Rg5+ {[%emt 0:00:08] Double Attack} 1-0

[Event "MARCEL 1st Div Ch-League 2019"]
[Site "Dhaka"]
[Date "2019.11.14"]
[Round "3.10"]
[White "Habibur Rahman, Sohel"]
[Black "Bhuiyan, Golam Mostafa"]
[Result "0-1"]
[ECO "B20"]
[WhiteElo "1841"]
[BlackElo "2060"]
[Annotator "NA RC"]
[PlyCount "74"]
[EventDate "2019.11.12"]
[EventCountry "BAN"]
[SourceTitle "playchess.com"]
[Source "ChessBase"]
[SourceQuality "1"]
[TimeControl "5400+30"]

{[%evp 8,68,-25,-34,-6,-32,-37,-27,-34,-42,-42,-36,-35,-41,-34,-87,-14,-13,0,0,107,119,99,28,75,18,89,148,163,162,131,41,105,55,99,83,81,106,84,8,45,32767,32767,32767,32767,-321,-250,-462,-543,-534,-497,-429,-480,-447,-417,-420,-528,-1144,-709,-1011,-1027,-995,-1118]} 1. e4 {[%emt 0:00:00]} c5 {[%emt 0:00:00]} 2. Bc4 {[%emt 0:00:15]} Nc6 {[%emt 0:00:00]} 3. a3 {[%emt 0:02:39]} Nf6 {[%emt 0:00:34]} 4. Nc3 {[%emt 0:01:22]} e6 {[%emt 0:00:03]} 5. d3 {[%emt 0:01:56]} a6 {[%emt 0:00:13]} 6. Nge2 {[%emt 0:04:03] B20: Sicilian: Unusual White 2nd moves} (6. Ba2 d5 7. exd5 Nxd5 8. Nxd5 exd5 9. Ne2 Be7 10. Nf4 d4 11. O-O O-O 12. Re1 Bd6 13. Qh5 {½-½ (42) Santos Latasa,J (2523)-Krause,B (2438) Getxo 2017}) 6... Be7 {[%emt 0:00:34]} 7. O-O {[%emt 0:01:51]} b5 {[%emt 0:00:27]} 8. Ba2 {[%emt 0:03:45]} O-O {[%emt 0:00:10]} 9. Ng3 {[%emt 0:04:49]} Bb7 {[%emt 0:00:58]} 10. f4 {[%emt 0:02:31]} d5 {[%emt 0:00:21]} 11. Kh1 $146 {[%emt 0:07:15]} ({Predecessor:} 11. f5 c4 12. Bg5 Nxe4 13. Bxe7 Nxc3 14. Bxd8 Nxd1 15. Raxd1 Raxd8 16. fxe6 fxe6 17. dxc4 Rxf1+ 18. Nxf1 bxc4 {0-1 (30) Doorn,D (1624)-Glavas,E (1960) ICCF email 2008}) 11... d4 {[%emt 0:07:31]} (11... dxe4 $17 12. Ncxe4 Nxe4 13. Nxe4 Nd4) 12. Nce2 {[%emt 0:01:03]} Rc8 {[%emt 0:00:31]} 13. Ng1 {[%emt 0:00:38]} e5 {[%emt 0:08:35]} (13... Qc7 $11 {remains equal.}) 14. Nf5 {[%emt 0:08:30]} Bd6 {[%emt 0:01:15]} 15. Nh3 {[%emt 0:08:46]} (15. fxe5 $16 Nxe5 16. Bg5) 15... exf4 {[%emt 0:02:55]} (15... c4 $11) 16. Nxf4 {[%emt 0:05:50]} Ne5 {[%emt 0:00:23]} 17. Nh5 {[%emt 0:04:34]} Nxh5 {[%emt 0:01:40]} 18. Qxh5 {[%emt 0:00:14]} c4 {[%emt 0:00:22]} ({But not} 18... g6 $2 {[#]} 19. Qh6 $1 $18 {[%mdl 512]}) 19. Bf4 {[%emt 0:03:44]} ({Much worse is} 19. Nxd4 $6 g6 $11) (19. Rf4 $16 h6 20. Bd2) 19... f6 {[%emt 0:00:07]} 20. Nxd4 {[%emt 0:02:42]} g6 {[%emt 0:04:59]} 21. Qh3 {[%emt 0:01:55]} Re8 {[%emt 0:00:37]} 22. Ne2 {[%emt 0:04:59]} Kh8 {[%emt 0:00:24]} 23. Nc3 {[%emt 0:01:28]} (23. Rac1 $16) 23... cxd3 {[%emt 0:03:56]} 24. cxd3 {[%emt 0:04:12]} Bxa3 {[%emt 0:02:16]} 25. Bxe5 {[%emt 0:02:57]} Rxe5 {[%emt 0:00:07]} 26. d4 $2 {[%emt 0:03:07] [#]} (26. Bd5 $1 $15 Bxb2 27. Bxb7 Rxc3 28. Rxa6 Rxd3 29. Ra8 Qxa8 30. Qxd3) 26... Rh5 $1 {[%emt 0:00:15]} ({But not} 26... Qxd4 $2 27. Rad1 $18) ({And not} 26... Bxb2 27. dxe5 Rxc3 {[#]} 28. Qh6 $1 $11 {[%mdl 512]}) 27. Qf3 {[%emt 0:03:12]} Bxb2 {[%emt 0:00:14] Double Attack} 28. Nd5 {[%emt 0:00:32]} Bxd5 {[%emt 0:00:41]} 29. Bxd5 {[%emt 0:00:25]} Bxa1 {[%emt 0:01:00]} 30. Rxa1 {[%emt 0:00:04]} Qd6 {[%emt 0:00:19]} 31. h3 {[%emt 0:01:16]} b4 {[%emt 0:00:05]} 32. g4 {[%emt 0:02:21]} Rh4 {[%emt 0:00:24]} 33. Rf1 {[%emt 0:04:54]} Rc3 {[%emt 0:00:47]} 34. e5 {[%emt 0:00:31]} fxe5 $19 {[%emt 0:02:22]} 35. Qf7 {[%emt 0:04:17]} Rhxh3+ {[%emt 0:05:29]} 36. Kg2 {[%emt 0:00:45]} Qd8 {[%emt 0:03:03]} 37. Rf6 {[%emt 0:01:38]} Rhd3 {[%emt 0:04:13]} 0-1